bitfinex/quotes_SOLUSD_20250212
["timestamp","ask_amount","ask_price","bid_price","bid_amount"]
[1739377023233,0.063,191.44,191.29,35.76021327]
[1739377023538,0.063,191.44,191.31,13.66282853]
[1739377023831,42.80911921,191.37,191.3,42.80911921]
[1739377024129,42.80911921,191.37,191.31,42.80911921]
[1739377024525,42.80911921,191.35,191.3,5.2273]
[1739377024707,42.80911921,191.37,191.3,48.03641921]
[1739377024903,0.063,191.44,191.31,57.69486483]
[1739377025111,42.80911921,191.41,191.31,57.69486483]
[1739377025442,2.063,191.44,191.3,5.2273]
[1739377025611,1.0,191.4,191.28,5.2277]
[1739377025935,42.80911921,191.33,191.28,5.2277]
[1739377026142,42.80911921,191.34,191.28,48.03681921]
[1739377026315,20.25098,191.38,191.21,1.09754607]
[1739377026505,0.063,191.39,191.24,5.229]
[1739377026710,0.063,191.39,191.28,42.80911921]
[1739377026907,0.063,191.39,191.3,0.37647]
[1739377027106,0.063,191.39,191.31,15.01103026]
[1739377027528,0.0001,191.32,191.31,15.01103026]
[1739377027729,0.0001,191.32,191.31,57.82014947]
[1739377028105,0.0001,191.32,191.31,57.69465947]
[1739377028524,0.0001,191.32,191.31,57.82014947]
[1739377028724,0.0001,191.32,191.31,63.04724947]
[1739377029210,0.0001,191.32,191.31,48.03621921]
[1739377029411,0.0001,191.32,191.31,61.95002774]
[1739377029825,0.0001,191.32,191.31,64.04717067]
[1739377030031,0.0001,191.32,191.31,63.04717067]
[1739377030840,42.80921921,191.32,191.23,26.1465]
[1739377031041,0.0001,191.32,191.25,13.0718]
[1739377031246,20.0001,191.32,191.24,5.229]
[1739377031419,20.0001,191.32,191.19,5.2303]
[1739377031420,0.12549,191.31,191.19,5.2303]
[1739377032230,42.80911921,191.23,191.19,5.2303]
[1739377032437,42.80911921,191.3,191.11,6.1547]
[1739377032438,42.80911921,191.2,191.13,5.232]
[1739377032611,42.80911921,191.18,191.11,48.04161921]
[1739377032815,6.3568,191.22,191.14,20.0]
[1739377033027,6.3568,191.27,191.18,20.0]
[1739377033537,0.12549,191.26,191.12,1.0980566]
[1739377033742,10.0166,191.27,191.14,20.0]
[1739377033941,6.3568,191.27,191.18,20.0]
[1739377034251,42.80911921,191.25,191.19,62.80911921]
[1739377034551,42.80911921,191.21,191.17,5.2308]
[1739377034723,42.80911921,191.18,191.13,5.232]
[1739377034923,42.80911921,191.19,191.16,20.0]
[1739377035234,42.80911921,191.17,191.13,5.232]
[1739377035438,23.6603,191.24,191.13,5.232]
[1739377035647,42.80911921,191.21,191.14,42.80911921]
[1739377035850,6.3568,191.27,191.16,20.0]
[1739377036155,6.3568,191.27,191.18,20.0]
[1739377036521,6.3568,191.27,191.16,1.09814832]
[1739377036834,6.3568,191.27,191.17,5.2309]
[1739377037021,10.0166,191.27,191.17,5.2309]
[1739377037215,42.80911921,191.21,191.17,5.2309]
[1739377037649,0.12549,191.25,191.12,42.80911921]
[1739377037818,42.80911921,191.13,191.11,5.2325]
[1739377038017,42.80911921,191.13,191.07,12.04049185]
[1739377038235,42.80911921,191.14,191.08,48.04251921]
[1739377038440,42.80911921,191.15,191.08,48.04251921]
[1739377038642,42.80911921,191.14,191.08,5.2334]
[1739377038857,42.80911921,191.13,191.08,5.2334]
[1739377039039,42.80911921,191.12,191.08,5.2334]
[1739377039450,42.80911921,191.13,191.08,5.2334]
[1739377039630,42.80911921,191.12,191.08,5.2334]
[1739377039824,42.80911921,191.12,191.09,20.0]
[1739377040046,42.80911921,191.14,191.07,48.04271921]
[1739377040327,42.80911921,191.15,191.08,43.90775922]
[1739377040731,42.80911921,191.14,191.08,42.80911921]
[1739377040954,42.80911921,191.13,191.07,61.12691921]
[1739377041154,42.80911921,191.14,191.07,61.12691921]
[1739377041366,42.80911921,191.18,191.12,42.80911921]
[1739377041531,42.80911921,191.22,191.15,62.80911921]
[1739377041946,42.80911921,191.22,191.16,5.2312]
[1739377042249,42.80911921,191.26,191.2,42.80911921]
[1739377042460,42.80911921,191.27,191.2,42.80911921]
[1739377042672,44.44350921,191.3,191.17,43.90736666]
[1739377042827,42.80911921,191.18,191.16,5.2312]
[1739377043329,42.80911921,191.19,191.16,20.0]
[1739377043730,42.80911921,191.17,191.13,5.232]
[1739377043962,42.80911921,191.15,191.1,5.2328]
[1739377044140,42.80911921,191.14,191.1,5.2328]
[1739377044453,46.47021921,191.2,191.08,5.2963]
[1739377044454,42.80911921,191.12,191.08,5.2963]
[1739377045070,42.80911921,191.1,191.08,0.063]
[1739377045252,42.80911921,191.09,191.08,0.063]
[1739377046133,42.80911921,191.1,191.08,0.063]
[1739377046635,42.80911921,191.09,191.08,0.063]
[1739377047351,42.80911921,191.1,191.08,0.063]
[1739377047658,42.80911921,191.11,191.08,0.063]
[1739377048763,42.80911921,191.13,191.08,0.063]
[1739377048964,1.546,191.17,191.08,0.063]
[1739377048965,42.80911921,191.17,191.11,42.80911921]
[1739377049165,42.80911921,191.19,191.12,42.80911921]
[1739377049468,42.80911921,191.19,191.1,13.78831853]
[1739377049469,42.80911921,191.23,191.16,42.80911921]
[1739377050060,44.80911921,191.3,191.13,14.88672563]
[1739377050061,42.80911921,191.27,191.2,42.80911921]
[1739377050234,42.80911921,191.27,191.17,21.22373575]
[1739377050235,42.80911921,191.27,191.21,48.03891921]
[1739377050547,42.80911921,191.27,191.18,14.17429729]
[1739377050548,42.80911921,191.23,191.19,20.0]
[1739377051030,42.80911921,191.23,191.17,5.2309]
[1739377051031,42.80911921,191.24,191.21,20.0]
[1739377051237,42.80911921,191.28,191.21,62.80911921]
[1739377051455,0.0001,191.32,191.23,42.80911921]
[1739377051655,42.80911921,191.3,191.23,42.80911921]
[1739377052158,0.0001,191.32,191.27,48.03731921]
[1739377052736,0.0001,191.32,191.27,5.2282]
[1739377052940,42.80911921,191.31,191.27,5.2282]
[1739377053139,42.80911921,191.3,191.27,5.2282]
[1739377053845,42.80911921,191.3,191.26,20.0]
[1739377054255,0.0001,191.32,191.29,0.12549]
[1739377054559,0.0001,191.32,191.26,48.03741921]
[1739377054762,42.80911921,191.29,191.26,5.2283]
[1739377055256,42.80911921,191.3,191.26,5.2283]
[1739377055456,42.80911921,191.31,191.26,5.2283]
[1739377055641,42.80911921,191.29,191.26,5.2283]
[1739377055838,42.80911921,191.28,191.26,5.2283]
[1739377056464,42.80911921,191.3,191.23,48.03841921]
[1739377057035,0.0001,191.32,191.23,5.2293]
[1739377057237,42.80911921,191.25,191.23,5.2293]
[1739377057535,42.80911921,191.29,191.23,5.2293]
[1739377057740,42.80911921,191.26,191.23,5.2293]
[1739377058050,0.0001,191.32,191.23,5.2293]
[1739377058250,42.80911921,191.3,191.23,5.2293]
[1739377058548,0.0001,191.32,191.29,62.80911921]
[1739377058754,0.0001,191.32,191.3,42.80911921]
[1739377059064,0.0001,191.32,191.27,42.80911921]
[1739377059270,0.0001,191.32,191.25,20.0]
[1739377060049,0.0001,191.32,191.22,5.2295]
[1739377060248,42.80911921,191.23,191.17,5.2309]
[1739377060449,42.80911921,191.2,191.16,5.2312]
[1739377061696,42.80911921,191.2,191.15,13.0782]
[1739377061852,3.6601,191.25,191.14,48.04081921]
[1739377061853,20.0,191.23,191.14,5.2317]
[1739377062054,42.80911921,191.16,191.14,5.2317]
[1739377062358,42.80911921,191.18,191.14,5.2317]
[1739377062885,5.03677,191.24,191.13,0.063]
[1739377062886,42.80911921,191.15,191.13,0.063]
[1739377063350,42.80911921,191.14,191.13,0.063]
[1739377063680,42.80911921,191.17,191.13,0.063]
[1739377063884,42.80911921,191.14,191.13,0.063]
[1739377064054,3.91128,191.24,191.13,0.063]
[1739377064055,4.91128,191.24,191.13,0.063]
[1739377064469,20.0,191.21,191.13,0.063]
[1739377064772,21.0,191.2,191.13,0.063]
[1739377064980,20.0,191.2,191.13,0.063]
[1739377065180,42.80911921,191.14,191.13,0.063]
[1739377067459,62.25963774,191.14,191.13,0.063]
[1739377067761,46.47131921,191.14,191.13,0.063]
[1739377068362,105.06875695,191.14,191.13,0.063]
[1739377068572,46.59680921,191.14,191.13,0.063]
[1739377068776,42.80911921,191.14,191.13,0.063]
[1739377069178,42.93460921,191.14,191.13,0.063]
[1739377069375,100.53204695,191.14,191.13,0.063]
[1739377069558,105.19424695,191.14,191.13,0.063]
[1739377069759,62.38512774,191.14,191.13,0.063]
[1739377070067,61.38512774,191.14,191.13,0.063]
[1739377070379,61.38512774,191.14,191.08,0.063]
[1739377070380,42.80911921,191.09,191.08,0.063]
[1739377073381,3.6611,191.2,191.08,42.87211921]
[1739377073694,6.0362,191.23,191.12,20.0]
[1739377073884,42.80911921,191.21,191.14,42.80911921]
[1739377074075,42.80911921,191.21,191.15,42.80911921]
[1739377074271,42.80911921,191.17,191.14,20.0]
[1739377074590,42.80911921,191.18,191.15,5.2314]
[1739377075297,42.80911921,191.2,191.15,5.2314]
[1739377076576,42.80911921,191.18,191.15,5.2314]
[1739377076788,0.12549,191.25,191.15,5.2314]
[1739377076789,42.80911921,191.17,191.15,5.2314]
[1739377077180,42.80911921,191.16,191.15,5.2314]
[1739377077694,42.80911921,191.16,191.1,56.59743774]
[1739377077695,42.80911921,191.16,191.1,5.2328]
[1739377078193,44.80911921,191.3,191.15,20.0]
[1739377078496,6.1366,191.27,191.15,20.0]
[1739377078788,6.0001,191.29,191.19,20.0]
[1739377078990,0.0001,191.32,191.21,20.0]
[1739377079294,42.80911921,191.27,191.21,62.80911921]
[1739377079468,42.80911921,191.27,191.21,20.0]
[1739377079663,42.80911921,191.27,191.21,62.80911921]
[1739377079869,42.80911921,191.27,191.21,20.0]
[1739377080289,42.80911921,191.25,191.22,20.0]
[1739377080592,42.80911921,191.25,191.19,5.35579]
[1739377080794,42.80911921,191.3,191.19,5.35579]
[1739377080795,42.80911921,191.22,191.19,5.2303]
[1739377080989,0.12549,191.29,191.19,5.2303]
[1739377080990,42.80911921,191.24,191.19,5.2303]
[1739377081195,42.80911921,191.21,191.19,5.2303]
[1739377081772,42.80911921,191.2,191.16,5.2312]
[1739377082794,42.80911921,191.2,191.16,20.0]
[1739377083003,42.80911921,191.21,191.14,42.80911921]
[1739377083194,42.80911921,191.16,191.13,5.232]
[1739377083373,42.80911921,191.14,191.09,5.2331]
[1739377083573,20.0,191.16,191.08,0.063]
[1739377083989,42.80911921,191.2,191.08,5.2963]
[1739377084199,2.6027,191.23,191.09,1.47512713]
[1739377084200,1.6027,191.23,191.09,1.47512713]
[1739377084497,20.0,191.21,191.1,1.09857527]
[1739377084704,1.6027,191.23,191.12,20.0]
[1739377084912,3.6605,191.23,191.13,6.33040287]
[1739377085196,42.80911921,191.2,191.14,42.80911921]
[1739377085405,42.80911921,191.18,191.13,5.232]
[1739377085700,42.80911921,191.16,191.13,5.232]
[1739377085886,42.80911921,191.18,191.13,5.232]
[1739377086083,42.80911921,191.2,191.13,48.04111921]
[1739377086289,42.80911921,191.23,191.17,42.80911921]
[1739377086492,42.80911921,191.26,191.19,42.80911921]
[1739377086689,42.80911921,191.26,191.2,42.80911921]
[1739377086887,42.80911921,191.26,191.21,5.2298]
[1739377087077,42.80911921,191.27,191.21,5.2298]
[1739377087507,42.80911921,191.26,191.21,5.2298]
[1739377087702,42.80911921,191.25,191.21,5.2298]
[1739377088004,42.80911921,191.24,191.21,5.2298]
[1739377088204,42.80911921,191.24,191.19,5.2303]
[1739377088385,42.80911921,191.23,191.19,5.2303]
[1739377088581,42.80911921,191.22,191.15,42.80911921]
[1739377088785,42.80911921,191.16,191.14,5.2317]
[1739377088993,42.80911921,191.15,191.13,0.063]
[1739377089195,1.12549,191.23,191.13,0.063]
[1739377089196,20.12549,191.21,191.13,0.063]
[1739377089396,42.80911921,191.14,191.13,0.063]
[1739377090911,42.80911921,191.15,191.13,0.063]
[1739377091095,42.80911921,191.14,191.13,0.063]
[1739377091294,42.80911921,191.15,191.13,0.063]
[1739377091497,42.80911921,191.2,191.13,42.87211921]
[1739377091808,42.80911921,191.21,191.15,42.80911921]
[1739377092012,0.25098,191.23,191.13,0.063]
[1739377092313,20.12549,191.21,191.13,0.063]
[1739377092495,42.80911921,191.14,191.13,0.063]
[1739377096610,42.80911921,191.16,191.13,0.063]
[1739377096825,42.80911921,191.17,191.13,0.063]
[1739377096988,42.80911921,191.18,191.13,0.063]
[1739377097189,42.80911921,191.19,191.13,42.87211921]
[1739377097389,42.80911921,191.22,191.15,42.80911921]
[1739377097999,42.80911921,191.2,191.13,49.32521921]
[1739377098204,42.80911921,191.22,191.15,42.80911921]
[1739377098513,42.80911921,191.22,191.13,7.6145112]
[1739377098514,42.80911921,191.21,191.14,42.80911921]
[1739377098811,42.80911921,191.21,191.16,5.2312]
[1739377099829,42.80911921,191.17,191.13,0.063]
[1739377099998,42.80911921,191.14,191.13,0.063]
[1739377101223,101.53204695,191.14,191.13,0.063]
[1739377101398,58.72292774,191.14,191.13,0.063]
[1739377101793,62.38512774,191.14,191.13,0.063]
[1739377102515,20.0,191.11,191.08,0.063]
[1739377102716,58.47194774,191.09,191.08,0.063]
[1739377103032,42.80911921,191.01,191.0,0.063]
[1739377103997,46.47381921,191.01,191.0,0.063]
[1739377104208,42.80911921,191.01,191.0,0.063]
[1739377106200,42.80911921,191.02,191.0,0.063]
[1739377106519,42.80911921,191.04,191.0,0.063]
[1739377106940,42.80911921,191.03,191.0,0.063]
[1739377107118,42.80911921,191.01,191.0,0.063]
[1739377108421,42.80911921,191.04,191.0,0.063]
[1739377108819,42.80911921,191.01,191.0,0.063]
[1739377109348,42.80911921,191.04,191.0,0.063]
[1739377109507,42.80911921,191.05,191.0,0.063]
[1739377110316,42.80911921,191.06,191.0,42.87211921]
[1739377110530,42.80911921,191.08,191.01,42.80911921]
[1739377110734,42.80911921,191.06,191.0,0.063]
[1739377110931,42.80911921,191.08,191.01,43.06009921]
[1739377111114,7.9541,191.16,191.04,0.12549]
[1739377111323,3.6614,191.18,191.06,20.0]
[1739377111715,3.6614,191.18,191.06,42.80911921]
[1739377111716,42.80911921,191.12,191.06,42.80911921]
[1739377112014,42.80911921,191.07,191.03,6.4618]
[1739377112335,42.80911921,191.1,191.04,5.2345]
[1739377112508,3.6622,191.14,191.04,5.2345]
[1739377112712,23.6622,191.14,191.04,5.2345]
[1739377112912,20.0,191.12,191.04,5.2345]
[1739377113140,3.6616,191.17,191.04,5.2345]
[1739377113343,20.0,191.15,191.04,5.2345]
[1739377113512,42.80911921,191.11,191.04,48.04361921]
[1739377113715,42.80911921,191.12,191.05,42.80911921]
[1739377114224,22.94191853,191.18,191.04,5.2345]
[1739377114225,42.80911921,191.07,191.04,5.2345]
[1739377114432,42.80911921,191.06,191.04,5.2345]
[1739377114631,42.80911921,191.08,191.04,5.2345]
[1739377115040,42.80911921,191.07,191.04,5.2345]
[1739377115224,42.80911921,191.07,191.02,13.0873]
[1739377115427,42.80911921,191.04,191.01,5.2353]
[1739377115626,42.80911921,191.02,191.01,5.2353]
[1739377115830,42.80911921,191.02,191.0,0.063]
[1739377116029,42.80911921,191.01,191.0,0.063]
[1739377117527,42.80911921,191.03,191.0,0.063]
[1739377118061,42.80911921,191.04,191.0,0.063]
[1739377118355,42.80911921,191.05,191.0,0.063]
[1739377118661,42.80911921,191.09,191.03,42.80911921]
[1739377118851,42.80911921,191.1,191.03,42.80911921]
[1739377119361,42.80911921,191.11,191.05,42.80911921]
[1739377119530,42.80911921,191.12,191.06,42.80911921]
[1739377119730,42.80911921,191.11,191.05,42.80911921]
[1739377119949,42.80911921,191.1,191.04,67.56421921]
[1739377120553,42.80911921,191.09,191.04,24.7551]
[1739377120729,42.80911921,191.08,191.04,24.7551]
[1739377121532,42.80911921,191.1,191.04,24.7551]
[1739377122863,13.66282853,191.15,191.04,11.6689]
[1739377123034,42.80911921,191.06,191.04,5.2345]
[1739377123240,42.80911921,191.07,191.04,5.2345]
[1739377123445,42.80911921,191.09,191.04,5.2345]
[1739377123651,42.80911921,191.08,191.04,5.2345]
[1739377123960,42.80911921,191.05,191.01,5.2353]
[1739377124162,42.80911921,191.02,191.0,0.063]
[1739377124468,42.80911921,191.01,191.0,0.063]
[1739377125142,20.0,191.06,191.0,0.063]
[1739377125143,42.80911921,191.02,191.0,0.063]
[1739377125480,42.80911921,191.01,191.0,0.063]
[1739377125680,26.37212213,191.01,191.0,0.063]
[1739377126953,26.37212213,191.02,191.0,0.063]
[1739377127252,26.37212213,191.01,191.0,0.063]
[1739377130772,70.07177279,191.01,191.0,0.063]
[1739377131088,43.69965066,191.01,191.0,0.063]
[1739377131261,70.07177279,191.01,191.0,0.063]
[1739377131979,20.25098,190.98,190.97,0.03]
[1739377132164,60.03495066,190.98,190.97,0.03]
[1739377132365,13.78831853,190.97,190.95,0.063]
[1739377132567,13.78831853,190.97,190.93,0.063]
[1739377132568,13.66282853,190.95,190.93,0.063]
[1739377132771,30.03812213,190.94,190.93,0.063]
[1739377133190,26.37212213,190.94,190.93,0.063]
[1739377134480,26.62310213,190.94,190.93,0.063]
[1739377134683,26.62310213,190.94,190.88,0.063]
[1739377134684,26.37212213,190.89,190.88,0.063]
[1739377135904,26.62310213,190.89,190.88,0.063]
[1739377136104,20.0,190.87,190.86,0.063]
[1739377136281,46.37212213,190.87,190.86,0.063]
[1739377137084,63.95333066,190.87,190.86,0.063]
[1739377137303,0.12549,190.86,190.8,0.063]
[1739377137506,26.37212213,190.81,190.8,0.063]
[1739377139810,52.74424426,190.81,190.8,0.063]
[1739377140011,26.37212213,190.81,190.8,0.063]
[1739377140308,52.74424426,190.81,190.8,0.063]
[1739377140518,66.65805279,190.81,190.8,0.063]
[1739377140726,46.62310213,190.78,190.77,0.03]
[1739377140895,0.25098,190.77,190.65,6.621]
[1739377141226,26.37212213,190.74,190.66,31.61702213]
[1739377141398,26.37212213,190.74,190.66,18.3572]
[1739377142423,26.37212213,190.74,190.66,5.2449]
[1739377142795,26.62310213,190.74,190.66,5.2449]
[1739377142992,43.95583066,190.74,190.62,13.1144]
[1739377143408,30.29300213,190.74,190.62,13.1144]
[1739377144256,30.29300213,190.74,190.62,18.3604]
[1739377145222,30.29300213,190.74,190.62,13.1144]
[1739377146297,30.29300213,190.74,190.62,18.3604]
[1739377147110,26.37212213,190.74,190.63,26.37212213]
[1739377147302,26.37212213,190.74,190.65,26.37212213]
[1739377147507,26.37212213,190.74,190.66,26.37212213]
[1739377147927,26.37212213,190.74,190.64,26.49761213]
[1739377148549,26.37212213,190.74,190.65,18.3582]
[1739377149049,26.62310213,190.74,190.65,5.2452]
[1739377149349,30.29300213,190.74,190.65,5.2452]
[1739377149556,26.37212213,190.67,190.65,5.2452]
[1739377149724,26.37212213,190.68,190.65,5.2452]
[1739377150244,26.37212213,190.68,190.62,13.1148]
[1739377150245,26.37212213,190.74,190.67,26.37212213]
[1739377150420,26.37212213,190.73,190.66,26.37212213]
[1739377150625,26.37212213,190.71,190.65,46.37212213]
[1739377150847,0.25098,190.78,190.67,26.37212213]
[1739377151023,3.6689,190.79,190.7,20.0]
[1739377151344,26.37212213,190.79,190.72,46.37212213]
[1739377151550,26.37212213,190.8,190.73,26.37212213]
[1739377151776,26.43512213,190.81,190.74,46.37212213]
[1739377152251,26.37212213,190.8,190.75,5.2424]
[1739377152415,0.063,190.81,190.78,26.37212213]
[1739377152622,0.063,190.81,190.79,26.37212213]
[1739377152823,0.063,190.81,190.8,26.49761213]
[1739377153624,0.063,190.81,190.8,40.03495066]
[1739377153827,0.063,190.81,190.8,47.96355066]
[1739377154455,0.063,190.81,190.8,53.20455066]
[1739377154660,0.063,190.81,190.8,39.66721213]
[1739377154961,0.063,190.81,190.76,5.2421]
[1739377154962,26.43512213,190.81,190.76,5.2421]
[1739377155125,0.063,190.81,190.76,5.2421]
[1739377155332,0.063,190.81,190.77,0.12549]
[1739377155758,0.063,190.81,190.78,26.37212213]
[1739377155946,0.063,190.81,190.8,26.37212213]
[1739377156255,0.063,190.81,190.8,20.0]
[1739377156852,0.063,190.81,190.79,25.2413]
[1739377157051,0.063,190.81,190.8,26.49761213]
[1739377157354,0.063,190.81,190.8,46.64785066]
[1739377157564,0.063,190.81,190.8,46.89883066]
[1739377157854,0.0001,190.81,190.8,74.91175279]
[1739377158233,0.0001,190.81,190.8,81.15275279]
[1739377158954,26.37212213,190.94,190.87,0.12549]
[1739377159142,26.37212213,190.92,190.85,46.37212213]
[1739377159657,26.37212213,190.92,190.86,62.8844051]
[1739377159658,42.8844051,190.92,190.86,62.8844051]
[1739377160051,42.8844051,190.93,190.87,5.2391]
[1739377160451,42.8844051,190.92,190.87,5.2391]
[1739377160652,0.063,190.92,190.87,5.2391]
[1739377160964,42.8844051,190.91,190.87,5.2391]
[1739377161263,0.063,190.92,190.87,5.2391]
[1739377161433,42.9474051,190.92,190.87,5.2391]
[1739377162047,0.063,190.92,190.87,5.2391]
[1739377162244,0.063,190.92,190.87,48.1235051]
[1739377162640,0.063,190.92,190.91,20.12549]
[1739377162874,11.64881614,190.98,190.95,20.0]
[1739377163052,0.063,191.01,191.0,20.0]
[1739377163371,0.063,191.01,191.0,42.8844051]
[1739377163941,0.063,191.01,190.98,62.8844051]
[1739377164150,0.063,191.01,191.0,20.0]
[1739377164376,0.063,191.01,191.0,62.8844051]
[1739377164870,0.063,191.01,191.0,20.0]
[1739377165167,0.063,191.01,190.99,5.2358]
[1739377165361,41.4474051,191.01,190.95,5.2369]
[1739377165566,42.8844051,191.01,190.98,20.0]
[1739377165948,42.8844051,190.99,190.95,5.2369]
[1739377166158,42.8844051,190.98,190.95,5.2369]
[1739377166373,42.8844051,190.97,190.95,5.2369]
[1739377166672,42.8844051,190.97,190.92,5.2377]
[1739377167042,42.8844051,190.95,190.92,5.2377]
[1739377167242,42.8844051,190.95,190.88,42.8844051]
[1739377167461,42.8844051,190.94,190.88,42.8844051]
[1739377167746,42.8844051,190.92,190.87,5.2391]
[1739377169172,42.8844051,190.91,190.87,5.2391]
[1739377169341,42.8844051,190.92,190.87,5.2391]
[1739377169660,42.8844051,190.93,190.87,5.2391]
[1739377170070,42.8844051,190.96,190.89,42.8844051]
[1739377170363,42.8844051,190.95,190.89,42.8844051]
[1739377170572,3.6641,191.04,190.91,20.12549]
[1739377170783,1.5331,191.07,190.92,14.88795117]
[1739377170952,5.1966,191.07,190.95,20.0]
[1739377171152,6.6628,191.08,190.96,13.66282853]
[1739377171454,3.6628,191.11,190.98,13.66282853]
[1739377171661,6.1957,191.12,190.98,13.66282853]
[1739377171860,42.8844051,191.04,190.97,49.3824051]
[1739377172064,42.8844051,191.03,190.98,5.2361]
[1739377172268,42.8844051,191.05,190.98,48.1205051]
[1739377172471,42.8844051,191.04,190.98,5.2361]
[1739377172777,42.8844051,191.02,190.96,42.8844051]
[1739377172960,42.8844051,191.02,190.96,5.2364]
[1739377173275,42.8844051,191.05,190.98,42.8844051]
[1739377173446,42.9144051,191.04,190.97,42.8844051]
[1739377173644,42.8844051,191.01,190.96,5.2364]
[1739377173863,0.03,191.04,190.96,5.2364]
[1739377174153,42.9144051,191.04,190.98,5.2361]
[1739377174778,0.03,191.04,191.03,42.8844051]
[1739377174949,0.03,191.04,191.03,43.0098951]
[1739377175150,0.03,191.04,191.03,56.67272363]
[1739377175463,42.8844051,191.16,191.07,20.0]
[1739377175657,42.8844051,191.16,191.09,42.8844051]
[1739377176247,42.8844051,191.16,191.1,5.2328]
[1739377177375,54.3427988,191.17,191.13,20.0]
[1739377177669,0.25098,191.21,191.13,20.0]
[1739377177670,42.8844051,191.15,191.13,20.0]
[1739377178570,42.8844051,191.16,191.13,20.0]
[1739377178776,42.8844051,191.18,191.11,42.8844051]
[1739377179182,42.8844051,191.17,191.13,20.0]
[1739377179483,42.8844051,191.18,191.14,20.0]
[1739377179788,42.8844051,191.19,191.14,20.0]
[1739377180073,42.8844051,191.18,191.14,20.0]
[1739377180456,42.8844051,191.19,191.14,20.0]
[1739377180661,42.8844051,191.18,191.14,20.0]
[1739377180964,42.8844051,191.17,191.13,5.2319]
[1739377181172,42.8844051,191.18,191.13,5.2319]
[1739377181370,42.8844051,191.17,191.13,5.2319]
[1739377181565,42.8844051,191.16,191.09,42.8844051]
[1739377181760,42.8844051,191.15,191.12,20.0]
[1739377182446,42.8844051,191.13,191.1,5.2328]
[1739377182651,42.8844051,191.11,191.07,5.2336]
[1739377183159,42.8844051,191.13,191.07,5.2336]
[1739377183460,42.8844051,191.12,191.07,5.2336]
[1739377183661,42.8844051,191.08,191.02,42.8844051]
[1739377183871,42.8844051,191.07,191.01,5.2353]
[1739377184286,42.8844051,191.06,191.01,5.2353]
[1739377184657,42.8844051,191.04,191.01,5.2353]
[1739377185569,42.8844051,191.05,191.01,5.2353]
[1739377185767,42.8844051,191.02,190.99,5.2358]
[1739377186299,42.8844051,191.04,190.99,5.2358]
[1739377186658,42.8844051,191.03,190.99,5.2358]
[1739377186884,42.8844051,191.01,190.99,5.2358]
[1739377187185,42.8844051,191.04,190.99,5.2358]
[1739377187389,42.8844051,191.05,190.99,5.2358]
[1739377187562,42.8844051,191.04,190.99,5.2358]
[1739377188183,42.8844051,191.03,190.99,5.2358]
[1739377188485,42.8844051,191.03,190.98,5.2361]
[1739377189471,42.8844051,191.04,190.98,5.2361]
[1739377189676,26.35880897,191.04,190.98,5.2361]
[1739377189987,26.35880897,191.03,190.98,5.2361]
[1739377190486,26.35880897,191.0,190.98,5.2361]
[1739377190786,26.35880897,191.0,190.96,5.2366]
[1739377191290,26.35880897,191.01,190.96,5.2366]
[1739377191965,26.35880897,191.04,190.97,26.35880897]
[1739377192586,26.35880897,191.04,190.98,5.2361]
[1739377193100,26.35880897,191.01,190.98,5.2361]
[1739377193472,26.35880897,191.0,190.98,5.2361]
[1739377193672,26.35880897,190.99,190.98,5.2361]
[1739377194078,26.35880897,190.99,190.94,5.2372]
[1739377194283,26.35880897,190.96,190.94,5.2372]
[1739377194477,26.35880897,190.98,190.94,5.2372]
[1739377194683,26.35880897,190.99,190.93,5.2375]
[1739377194888,26.35880897,190.98,190.93,5.2375]
[1739377195189,26.35880897,190.95,190.93,5.2375]
[1739377196476,26.35880897,190.95,190.92,5.2377]
[1739377197974,26.35880897,190.96,190.92,5.2377]
[1739377198173,26.35880897,190.99,190.92,31.59650897]
[1739377198576,26.35880897,190.98,190.92,5.2377]
[1739377198883,26.35880897,190.97,190.92,5.2377]
[1739377199302,26.35880897,190.98,190.92,5.2377]
[1739377199504,26.35880897,190.97,190.92,5.2377]
[1739377200302,26.35880897,191.02,190.95,26.35880897]